Cogmind - Beta 13 @@@ ROGUE MODE // 2024.04.29 @ 14:25:07 Player: luckinvolved Result: Destroyed by G-34 Mercenary with Small Laser Performance ------------- Evolutions (0) 0 Regions Visited (2) 400 Robots Destroyed (22) 110 Value Destroyed (456) 456 Prototype IDs (0) 0 Alien Tech Used (0) 0 Bonus (0) 0 TOTAL SCORE: 966 Bonus ------- None Cogmind --------- Core Integrity 0/250 Matter 290/300 Energy 245/265 System Corruption 0% Temperature Cool (6) Movement Treading (160) Location -10/Mines Parts ------- > --- POWER (1) -------- Improved Ion Engine > --- PROPULSION (2) --- Light Treads Light Treads > --- UTILITY (2) ------ Medium Storage Unit Weight Redist. System > --- WEAPON (2) ------- Hammer > --- INVENTORY (10) --- Ion Engine Light Treads Large Matter Pod (150) Visual Processing Unit Signal Interpreter Peak State ------------ > --- POWER ------------ Improved Ion Engine > --- PROPULSION ------- Light Treads Light Treads > --- UTILITY ---------- Medium Storage Unit Targeting Computer > --- WEAPON ----------- Beam Rifle Light Assault Rifle > --- INVENTORY -------- Ion Engine Light Treads Light Treads Light Treads Large Matter Pod Weight Redist. System Visual Processing Unit Signal Interpreter Light Armor Plating Hammer [Rating: 10] Favorites ----------- Power Ion Engine Engine Ion Engine Propulsion Light Treads Treads Light Treads Utility Medium Storage Unit Device Terrain Scanner Storage Medium Storage Unit Processor Targeting Computer Protection Light Armor Plating Weapon Light Assault Rifle Energy Gun Small Laser Ballistic Gun Light Assault Rifle Impact Weapon Hammer Build | -11 -10 -10 ------- Run | Yrd Mat Min Slots Evolved . | . . . Power . | . . . Propulsion . | . . . Utility . | . . . Weapon . | . . . Parts Attached 20 | 6 2 12 Power 2 | 1 . 1 Engine 2 | 1 . 1 Core . | . . . Reactor . | . . . Propulsion 5 | 2 . 3 Treads 5 | 2 . 3 Leg . | . . . Wheel . | . . . Hover . | . . . Flight . | . . . Utility 6 | 1 2 3 Device 2 | . 1 1 Storage 2 | 1 1 . Processor 1 | . . 1 Hackware . | . . . Protection 1 | . . 1 Artifact . | . . . Weapon 7 | 2 . 5 Energy Gun 4 | 1 . 3 Energy Cannon . | . . . Ballistic Gun 1 | 1 . . Ballistic Cannon . | . . . Launcher . | . . . Special Weapon . | . . . Impact Weapon 2 | . . 2 Slashing Weapon . | . . . Piercing Weapon . | . . . Special Melee Weapon . | . . . Unidentified Prototypes . | . . . Parts Lost 7 | . . 7 Power . | . . . Propulsion 2 | . . 2 Utility 2 | . . 2 Weapon 3 | . . 3 Highest Loss Streak 5 | . . 5 To Critical Strikes . | . . . Average Slot Usage (%) 96 | . 94 99 Engine 14 | . 14 14 Treads 27 | . 28 27 Device 5 | . 8 2 Storage 14 | . 14 14 Processor 3 | . . 6 Protection 2 | . . 5 Energy Gun 12 | . 14 11 Ballistic Gun 14 | . 14 14 Impact Weapon 1 | . . 2 Naked Turns . | . . . Heaviest Build 24 | 12 22 24 Greatest Support 46 | 40 40 46 Greatest Overweight (x) 1 | 1 . . Average Overweight (x) . | . . . Largest Inventory Capacity 10 | 8 10 10 Average Capacity 9 | 6 9 10 Most Carried 10 | 2 9 10 Average Carried 6 | 1 4 9 Final Capacity 10 | 8 10 10 Final Carried 9 | 2 9 5 Class Distribution -------------------- 97% | Mutant Dominant Class ---------------- Mutant | -10/Materials Mutant | -10/Mines Resources | -11 -10 -10 ----------- Run | Yrd Mat Min Matter Collected 590 | 247 120 223 Remotely . | . . . Salvage Created 640 | . 219 421 Parts 52 | . 23 29 Haulers Intercepted 1 | . 1 . Recyclers Shooed . | . . . Parts Field Recycled . | . . . Retrieved Matter . | . . . Parts Self-Destructed . | . . . Prevented . | . . . Kills | -11 -10 -10 ------- Run | Yrd Mat Min Combat Hostiles Destroyed 22 | . 7 15 Guns 22 | . 7 15 Classes Destroyed 6 | . 4 2 Hauler 1 | . 1 . Watcher 1 | . 1 . Swarmer 11 | . 6 5 Grunt 7 | . 1 6 Sentry 2 | . . 2 Assembled 2 | . . 2 Best Kill Streak 4 | . 3 4 Combat Bots Only 4 | . 3 4 Max Kills in Single Turn 2 | . 1 2 Gunslinging 1 | . . 1 Exploded . | . . . Melee . | . . . Uniques/NPCs Destroyed . | . . . Combat | -11 -10 -10 -------- Run | Yrd Mat Min Hostile Shots Fired 161 | . 36 125 Missed 44 | . 8 36 Damage Taken 1204 | . 228 976 Core 252 | . 74 178 Absorbed by Shields . | . . . Core Remaining (%) 100 | 100 . . Volleys Fired 66 | . 26 40 Largest 2 | . 2 2 Hottest 76 | . 60 76 Shots Fired 126 | . 50 76 Gun 126 | . 50 76 Cannon . | . . . Launcher . | . . . Special . | . . . Kinetic 66 | . 26 40 Thermal 60 | . 24 36 Explosive . | . . . Electromagnetic . | . . . Robot Hit Streak 18 | . 7 18 Robot Miss Streak 4 | . 3 4 Penetration Max . | . . . Secondary Targets 4 | . 1 3 Max Gunslinging Chain 1 | . 1 1 Shots Hit Robots 87 | . 33 54 Core Hits 40 | . 15 25 Critical Kills . | . . . Critical Parts Destroyed . | . . . Critical Strikes 1 | . . 1 Burn 1 | . . 1 Melee Attacks 13 | . . 13 Impact 13 | . . 13 Slashing . | . . . Piercing . | . . . Sneak Attacks . | . . . Combat Hostiles . | . . . Follow-up Attacks . | . . . Damage Inflicted 939 | . 321 618 Guns 939 | . 321 618 Cannons . | . . . Explosions . | . . . Melee . | . . . Ramming . | . . . Kinetic 395 | . 159 236 Thermal 544 | . 162 382 Explosive . | . . . Electromagnetic . | . . . Impact . | . . . Slashing . | . . . Piercing . | . . . Highest Corruption . | . . . Average Corruption . | . . . Corruption Purged . | . . . Corruption Blocked . | . . . Overload Shots . | . . . Overflow Damage . | . . . Projectiles . | . . . Explosions . | . . . Melee . | . . . Knockbacks . | . . . Impact . | . . . Kinetic . | . . . Secondary . | . . . Self-Inflicted Damage . | . . . Shots . | . . . Rammed . | . . . Targets Rammed . | . . . Kicked . | . . . Crushed . | . . . Highest Temperature 276 | . 40 276 Average Temperature 65 | . 19 83 Received Heat Transfer 258 | . 12 246 Siege Activations . | . . . Robots Corrupted . | . . . Combat Hostiles . | . . . Parts Fried . | . . . Impact Corruptions . | . . . Robots Melted . | . . . Combat Hostiles . | . . . Parts Melted 1 | . . 1 Heat Transferred 1413 | . 375 1038 Parts Sabotaged . | . . . Parts Stolen . | . . . Parts Stripped . | . . . Power Chain Reactions . | . . . Alert | -11 -10 -10 ------- Run | Yrd Mat Min Peak Influence 224 | . 207 224 Initial 23 | . . 23 Average 66 | . 58 82 Maximum Alert Level 1 | . 1 1 Low Security (%) 97 | 100 99 95 Level 1 2 | . . 4 Level 2 . | . . . Level 3 . | . . . Level 4 . | . . . Level 5 . | . . . High Security . | . . . Max Security . | . . . Squads Dispatched 1 | . 1 . Investigation . | . . . Extermination . | . . . Reinforcement 1 | . 1 . Assault . | . . . Garrison . | . . . Intercept . | . . . Searches Triggered . | . . . Construction Impeded . | . . . Haulers Reinforced . | . . . Active Scanning Responses . | . . . Cargo Convoy Interrupts . | . . . Stealth | -11 -10 -10 --------- Run | Yrd Mat Min Distress Signals . | . . . Communications Jammed . | . . . Distress Signals . | . . . Times Spotted 31 | . 14 17 Peak Tracking Total 6 | . 6 6 Tactical Retreats . | . . . Traps | -11 -10 -10 ------- Run | Yrd Mat Min Traps Triggered . | . . . Indirectly . | . . . Trap Hack Attempts . | . . . Triggered . | . . . Disarmed . | . . . Reprogrammed . | . . . Reused . | . . . Traps Extracted . | . . . Installed . | . . . Triggered . | . . . Machines | -11 -10 -10 ---------- Run | Yrd Mat Min Machines Disabled . | . . . Max in Single Turn . | . . . Machines Repaired . | . . . Machines Dismantled . | . . . Machines Sabotaged . | . . . Overloaded Fab Kills . | . . . Hacking | -11 -10 -10 --------- Run | Yrd Mat Min Machines Accessed 4 | . 4 . Terminals 3 | . 3 . Fabricators . | . . . Repair Stations . | . . . Recycling Units 1 | . 1 . Scanalyzers . | . . . Garrison Access . | . . . Total Hacks 9 | . 9 . Successful 2 | . 2 . Failed 7 | . 7 . Catastrophic 2 | . 2 . Database Lockouts . | . . . Manual 6 | . 6 . Terminals 6 | . 6 . Fabricators . | . . . Repair Stations . | . . . Recycling Units 3 | . 3 . Scanalyzers . | . . . Garrison Access . | . . . Terminal Hacks 1 | . 1 . Branch Access Points 1 | . 1 . Fabricator Hacks . | . . . Repair Station Hacks . | . . . Recycling Unit Hacks 1 | . 1 . Retrieve Components 1 | . 1 . Scanalyzer . | . . . Garrison Access Hacks . | . . . Unauthorized Hacks . | . . . Terminals . | . . . Fabricators . | . . . Repair Stations . | . . . Recycling Units . | . . . Scanalyzers . | . . . Garrison Access . | . . . Data Cores Recovered . | . . . Used . | . . . Hacking Detections 4 | . 4 . Full Trace Events . | . . . Feedback Events . | . . . Feedback Blocked . | . . . Robot Schematics Acquired . | . . . Robots Built . | . . . Authchips . | . . . Time . | . . . Total Robot Build Rating . | . . . Part Schematics Acquired . | . . . Parts Built . | . . . Authchips . | . . . Time . | . . . Total Part Build Rating . | . . . Parts Repaired . | . . . Time . | . . . Parts Recycled . | . . . Recycled Matter . | . . . Retrieved Matter . | . . . Retrieved Components 2 | . 2 . Parts Scanalyzed . | . . . Part Schematics Acquired . | . . . Parts Damaged . | . . . Bothacking | -11 -10 -10 ------------ Run | Yrd Mat Min Used RIF Installer . | . . . Robots Hacked . | . . . Non-combat . | . . . Combat . | . . . Robot Hacks Applied . | . . . Relay Couplers Released . | . . . Fabnet Peak Effective % . | . . . Robots Rewired . | . . . Allies Hacked . | . . . Hacks Repelled . | . . . Allies | -11 -10 -10 -------- Run | Yrd Mat Min Total Allies . | . . . Largest Group . | . . . Highest-Rated Group . | . . . Highest-Rated Ally . | . . . Total Orders . | . . . Ally Attacks . | . . . Total Damage . | . . . Kills . | . . . Allies Corrupted . | . . . Allies Melted . | . . . Intel | -11 -10 -10 ------- Run | Yrd Mat Min Robot Analysis Total . | . . . Derelict Logs Recovered . | . . . Drone Launches . | . . . Drone Recoveries . | . . . Exploration | -11 -10 -10 ------------- Run | Yrd Mat Min Turns Passed 1093 | 71 493 529 Spaces Moved 499 | 42 247 210 Core 9 | 9 . . Treads 490 | 33 247 210 Legs . | . . . Wheels . | . . . Hover . | . . . Flight . | . . . Fastest Speed 50 | 50 160 160 Average Speed 158 | 145 160 160 Slowest Speed 160 | 160 160 160 Overloaded Moves . | . . . Propulsion Burnouts . | . . . Robots Hopped . | . . . Cave-ins Triggered . | . . . Exploration Rate (%) 26 | 5 38 35 Regions Visited 2 Branch Regions 1 Pre-discovered Areas . | . . . Known Exits Taken 1 | . 1 . Unknown Exits Taken 1 | 1 . . Scrap Searched 2 | . . 2 Spaces Dug . | . . . Terrain Destroyed . | . . . Melee . | . . . Projectile . | . . . AOE . | . . . Terrain Rammed . | . . . Walls Destroyed . | . . . Machines Disabled . | . . . Actions | -11 -10 -10 --------- Run | Yrd Mat Min Total 661 | 49 300 312 Wait 47 | . 18 29 Move 497 | 41 246 210 Hop . | . . . Pick Up 12 | 2 7 3 Fast Attach 11 | 6 2 3 Attach 6 | . . 6 Detach . | . . . Swap 3 | . . 3 Drop 6 | . 1 5 Fire 66 | . 26 40 Melee 13 | . . 13 Ram . | . . . Kick . | . . . Crush . | . . . Escape Stasis . | . . . Rewire . | . . . Trap . | . . . Miscellaneous . | . . . Route ------- -11/Scrapyard -10/Materials (discovered 2 exits: [*Mat] / *Min) -10/Mines History --------- Turn | Location | Event 8 | -11/Scrapyard | Discovered new exit (range 15) 72 | -11/Scrapyard | Entered Materials 308 | -10/Materials | Build established: Mutant 479 | -10/Materials | Identified exit to Mines 519 | -10/Materials | Discovered new exit (range 16) 565 | -10/Materials | Entered Mines 598 | -10/Mines | Core integrity fell below 50% 723 | -10/Mines | Excavation squad dispatched 723 | -10/Mines | A large section of the Mines collapsed 947 | -10/Mines | Core integrity fell below 20% 973 | -10/Mines | Excavation squad dispatched 1094 | -10/Mines | Destroyed by G-34 Mercenary with Small Laser Last Messages --------------- 00953_ Acquired 5 matter. 00973_ ALERT: Derelict activity in mines confirmed. Dispatching additional escorted excavation squad. 01042_ Lgt. Treads destroyed. 01043_ S-10 Pest destroyed. 01043_ Switching to secondary target: S-10 Pest. 01049_ S-10 Pest destroyed. 01054_ G-34 Mercenary destroyed. 01054_ Switching to secondary target: G-34 Mercenary. 01054_ G-34 Mercenary destroyed. 01055_ R-06 Scavenger collects Aluminum Leg. 01057_ Beam Rifle destroyed. 01058_ R-06 Scavenger collects Sml. Laser. 01063_ Acquired 10 matter. 01064_ Lgt. Armor Plating destroyed. 01065_ R-06 Scavenger collects Ion Engine. 01066_ Acquired 10 matter. 01090_ Destroyed Flight Unit. 01091_ Lgt. Treads destroyed. 01092_ Lgt. Assault Rifle destroyed. Map ----- +----------------------------------------------------+ | ????????????????????????????????????????????? #?? | | ?????????????????????????????????????? ?? #? | | ??????????????????###?????###???????????# # | | ??????????????????? ????? ???????????# | | ???????????????????# ????? ?????????????# | | ???????????????????# ???? #??????????????# | | ???????????????????# ??## #??????????????## ? | | ???????????????????# ### ##??????????????## #? | | ???????????????????# #???????????????## #? | | ????????????????????? #????????????????# #? | | ??????????????????????# #????????????????# #? | | ????????????????????### #???????????####?# #? | | ???????????????????## ############## ### #? | | ??????????????????## $ ## #? | | ????????????????### ## ## #? | | ???????????????## ################### % ## | | ???????????????# #?????????????????# % # | | ??????????????## #?????????????????## | | ?????????????## ##??????????????????## | | ????????????## % %##???????????????????##### | | ???????????## !* #?????????######????????## | | ???????????# #??????## #?????????## | | ???????????# ##????# #??????????### | | ???????????# =[ ##?## #????????????# | | ???????????### =%* ### #?????????????? | | ?????????????# [# @ #????????####??? | | ?????????????# ## s ##???????## ##?? | | ?????????????# ??## g## ##????????# ### | | ?????????????# ???### #### ##????????## | | ????????????? ??????####??? #????????## | | ???????????? ?????????????# ##????????# | | ???????????? ??????????????? #?????????# | | ????????????????????????????# #?????????# | | ?????????????????????????????##?????????## ## # | | ?????????????????????????????????????????####?#### | | ?????????????????????????????????????????????#???? | | ?????????????????????????????????????????????????? | | ????????????????????????????????????????????????## | | ???????????????????????????????????????????????##! | | ???????????????????????????????????????????????#"! | | ???????????????????????????????????????????????# ! | | ???????????????????????????????????????????????# | | ???????????????????????????????????????????????#"] | | ???????????????????????????????????????????????## | | ????????????????????????????????????????? ??????## | | ?????????????????????????????????????????????????? | | ?????????????????????????????????????????????????? | | ?????????????????????????????????????????????????? | | ?????????????????????????????????????????????????? | | ?????????????????????????????????????????????????? | +----------------------------------------------------+ Best States ------------- Heat Dissipation 25 Energy Generation 12 Energy Capacity 265 Matter Stores 300 Matter Capacity 300 Sight Range 16 Terrain Scan Range 14 Terrain Scan Density 10 Additional Mass Support 6 Armor Coverage 150 Evasion (%) 40 Targeting Accuracy 5 Recoil Reduction 2 Item Schematics ----------------- None Robot Schematics ------------------ None Fabricated ------------ Nothing Alien Tech Used ----------------- None Achievements -------------- None Challenges ------------ None Game ------ Seed BehemothArmorComputer Manual? 0 Play Time 00:10:10 Cumulative 58.3 hours Start 2024.04.29 @ 14:02:28 End 2024.04.29 @ 14:25:07 Sessions 1 Manual Loads 0 Difficulty Rogue Special Mode None Game No. 95 Rogue 90 Adventurer 5 Explorer 0 Win Type - Total 1 Types 1/0/0/0/0/0/0/0/0 Lore% 27 Gallery% 54 Achievement% 37 Wizard Run 0 Options --------- Layout 0 ASCII 0 Keyboard 0 Movement Mouse Keybinds 0 Fullscreen 1 Font 24/Smallcaps Map View 38x25 Zoom Use 78% Tactical HUD 1 Map Filters NONE Filters NONE Steam 1 RUN: f57d4955-e53f-4478-86c1-4e027b94c120